[Event "Chinese Chess League Men 2019"]
[Site "Daqing"]
[Date "2019.06.20"]
[Round "2.11"]
[White "Lan, Zilun"]
[Black "Yu, Ruiyuan"]
[Result "1-0"]
[ECO "E17"]
[WhiteElo "2352"]
[BlackElo "2471"]
[Annotator "ChessBase"]
[PlyCount "22"]
[EventDate "2019.06.19"]
[EventType "team-tourn"]
[EventCountry "CHN"]
[SourceTitle "playchess.com"]
[Source "ChessBase"]
[SourceQuality "1"]
[TimeControl "5400+30"]

1. d4 {[%emt 0:00:00]} Nf6 {[%emt 0:00:00]} 2. c4 {[%emt 0:03:52]} e6 {[%emt 0:08:47]} 3. Nf3 {[%emt 0:00:57]} b6 {[%emt 0:01:55]} 4. g3 {[%emt 0:01:02]} Bb7 {[%emt 0:00:55]} 5. Bg2 {[%emt 0:00:03]} Be7 {[%emt 0:00:22]} 6. Nc3 {[%emt 0:00:09]} O-O {[%emt 0:00:28]} 7. Qc2 {[%emt 0:00:21]} c5 {[%emt 0:02:56]} 8. O-O {[%emt 0:02:11]} cxd4 {[%emt 0:00:37]} 9. Nxd4 {[%emt 0:00:03]} Bxg2 {[%emt 0:00:07]} 10. Kxg2 {[%emt 0:00:04]} Qc8 {[%emt 0:00:12]} 11. b3 {[%emt 0:05:48]} Nc6 {[%emt 0:01:03]} 1-0

[Event "Chinese Chess League Men 2019"]
[Site "Daqing"]
[Date "2019.06.20"]
[Round "2.12"]
[White "Chen, Qi b"]
[Black "Yu, Lie"]
[Result "0-1"]
[ECO "B09"]
[WhiteElo "2453"]
[BlackElo "2315"]
[Annotator "ChessBase"]
[PlyCount "58"]
[EventDate "2019.06.19"]
[EventType "team-tourn"]
[EventCountry "CHN"]
[SourceTitle "playchess.com"]
[Source "ChessBase"]
[SourceQuality "1"]
[TimeControl "5400+30"]

1. e4 {[%emt 0:00:00]} d6 {[%emt 0:00:16]} 2. d4 {[%emt 0:00:08]} g6 {[%emt 0:01:53]} 3. Nc3 {[%emt 0:00:13]} Bg7 {[%emt 0:00:36]} 4. f4 {[%emt 0:00:32]} Nf6 {[%emt 0:01:02]} 5. Nf3 {[%emt 0:00:38]} O-O {[%emt 0:03:23]} 6. a3 {[%emt 0:01:26]} b6 {[%emt 0:04:36]} 7. e5 {[%emt 0:14:34]} dxe5 {[%emt 0:13:51]} 8. dxe5 {[%emt 0:01:54]} Qxd1+ {[%emt 0:01:06]} 9. Nxd1 {[%emt 0:02:17]} Ne4 {[%emt 0:03:34]} 10. Be3 {[%emt 0:07:09]} Bb7 {[%emt 0:07:25]} 11. Nf2 {[%emt 0:10:49]} Nd7 {[%emt 0:09:22]} 12. Bc4 {[%emt 0:06:41]} Ndc5 {[%emt 0:05:43]} 13. Nd3 {[%emt 0:06:52]} Rad8 {[%emt 0:13:24]} 14. Ke2 {[%emt 0:03:11]} e6 {[%emt 0:01:38]} 15. Rhd1 {[%emt 0:03:47]} Rfe8 {[%emt 0:03:46]} 16. g4 {[%emt 0:05:35]} Bf8 {[%emt 0:03:13]} 17. Nd4 {[%emt 0:06:18]} b5 {[%emt 0:05:37]} 18. Rab1 {[%emt 0:20:29]} a6 {[%emt 0:01:08]} 19. Ba2 {[%emt 0:00:00]} Na4 {[%emt 0:00:29]} 20. Nb3 {[%emt 0:01:43]} Bd5 {[%emt 0:05:37]} 21. Ke1 {[%emt 0:01:51]} c5 {[%emt 0:00:53]} 22. Nbc1 {[%emt 0:00:13]} c4 {[%emt 0:01:11]} 23. Nf2 {[%emt 0:01:08]} Nxf2 {[%emt 0:01:31]} 24. Kxf2 {[%emt 0:00:08]} Be4 {[%emt 0:00:42]} 25. Rxd8 {[%emt 0:00:54]} Rxd8 {[%emt 0:00:10]} 26. Ne2 {[%emt 0:00:27]} Bxc2 {[%emt 0:00:07]} 27. Rc1 {[%emt 0:00:04]} Nxb2 {[%emt 0:01:49]} 28. Rxc2 {[%emt 0:02:33]} Nd1+ {[%emt 0:00:05]} 29. Kf3 {[%emt 0:00:03]} Rd3 {[%emt 0:00:08]} 0-1

[Event "Chinese Chess League Men 2019"]
[Site "Daqing"]
[Date "2019.06.21"]
[Round "3.7"]
[White "Xu, Jun"]
[Black "Liu, Guanchu"]
[Result "1/2-1/2"]
[ECO "E15"]
[WhiteElo "2481"]
[BlackElo "2462"]
[Annotator "ChessBase"]
[PlyCount "62"]
[EventDate "2019.06.19"]
[EventType "team-tourn"]
[EventCountry "CHN"]
[SourceTitle "playchess.com"]
[Source "ChessBase"]
[SourceQuality "1"]
[TimeControl "5400+30"]

1. d4 {[%emt 0:00:00]} Nf6 {[%emt 0:00:12]} 2. c4 {[%emt 0:01:33]} e6 {[%emt 0:00:37]} 3. Nf3 {[%emt 0:01:44]} b6 {[%emt 0:00:57]} 4. g3 {[%emt 0:01:14]} Ba6 {[%emt 0:00:22]} 5. Qa4 {[%emt 0:00:07]} Bb7 {[%emt 0:00:14]} 6. Bg2 {[%emt 0:00:23]} c5 {[%emt 0:00:31]} 7. dxc5 {[%emt 0:00:05]} bxc5 {[%emt 0:00:12]} 8. O-O {[%emt 0:00:07]} Be7 {[%emt 0:00:18]} 9. Nc3 {[%emt 0:00:09]} O-O {[%emt 0:00:18]} 10. Rd1 {[%emt 0:00:08]} Qb6 {[%emt 0:00:30]} 11. Bf4 {[%emt 0:00:17]} d6 {[%emt 0:01:57]} 12. Rab1 {[%emt 0:02:15]} Nbd7 {[%emt 0:05:56]} 13. b4 {[%emt 0:02:07]} Rfb8 {[%emt 0:03:33]} 14. a3 {[%emt 0:09:39]} a6 {[%emt 0:03:48]} 15. Qc2 {[%emt 0:09:44]} Qc7 {[%emt 0:16:14]} 16. b5 {[%emt 0:04:24]} Nb6 {[%emt 0:05:30]} 17. bxa6 {[%emt 0:06:19]} Bxa6 {[%emt 0:06:29]} 18. Nd2 {[%emt 0:06:29]} Ra7 {[%emt 0:11:52]} 19. Qd3 {[%emt 0:07:38]} Nh5 {[%emt 0:04:48]} 20. Be3 {[%emt 0:08:57]} d5 {[%emt 0:01:31]} 21. Bf3 {[%emt 0:00:32]} Nf6 {[%emt 0:00:37]} 22. Nb5 {[%emt 0:05:37]} Bxb5 {[%emt 0:03:03]} 23. Rxb5 {[%emt 0:03:10]} dxc4 {[%emt 0:06:36]} 24. Nxc4 {[%emt 0:03:55]} Nxc4 {[%emt 0:00:03]} 25. Qxc4 {[%emt 0:00:43]} Rxa3 {[%emt 0:08:18]} 26. Bf4 {[%emt 0:02:47]} e5 {[%emt 0:00:09]} 27. Bg5 {[%emt 0:00:50]} Rxb5 {[%emt 0:02:17]} 28. Qxb5 {[%emt 0:00:14]} Ra5 {[%emt 0:00:07]} 29. Qc4 {[%emt 0:01:03]} Ra7 {[%emt 0:04:40]} 30. Bxf6 {[%emt 0:02:19]} Bxf6 {[%emt 0:00:04]} 31. Bd5 {[%emt 0:00:42]} g6 {[%emt 0:00:30]} 1/2-1/2

[Event "Chinese Chess League Men 2019"]
[Site "Daqing"]
[Date "2019.06.21"]
[Round "3.8"]
[White "Zhao, Yuanhe"]
[Black "Yu, Ruiyuan"]
[Result "1-0"]
[ECO "D10"]
[WhiteElo "2444"]
[BlackElo "2471"]
[Annotator "ChessBase"]
[PlyCount "63"]
[EventDate "2019.06.19"]
[EventType "team-tourn"]
[EventCountry "CHN"]
[SourceTitle "playchess.com"]
[Source "ChessBase"]
[SourceQuality "1"]
[TimeControl "5400+30"]

1. d4 {[%emt 0:00:00]} d5 {[%emt 0:00:00]} 2. c4 {[%emt 0:00:00]} c6 {[%emt 0:00:00]} 3. Nc3 {[%emt 0:00:00]} Nf6 {[%emt 0:00:23]} 4. cxd5 {[%emt 0:00:00]} cxd5 {[%emt 0:00:05]} 5. Bf4 {[%emt 0:00:00]} Nc6 {[%emt 0:00:24]} 6. Rc1 {[%emt 0:00:00]} Qb6 {[%emt 0:04:14]} 7. e3 {[%emt 0:01:25]} Bf5 {[%emt 0:05:56]} 8. Be2 {[%emt 0:16:21]} e6 {[%emt 0:02:20]} 9. Na4 {[%emt 0:01:36]} Qa5+ {[%emt 0:02:03]} 10. Kf1 {[%emt 0:00:10]} g5 {[%emt 0:21:28]} 11. Bxg5 {[%emt 0:10:41]} Ne4 {[%emt 0:00:07]} 12. Nf3 {[%emt 0:02:30]} Bg4 {[%emt 0:08:45]} 13. Bf4 {[%emt 0:00:25]} Rg8 {[%emt 0:00:18]} 14. Kg1 {[%emt 0:08:43]} Rc8 {[%emt 0:03:31]} 15. h3 {[%emt 0:06:53]} Bh5 {[%emt 0:04:17]} 16. a3 {[%emt 0:00:00]} Qd8 {[%emt 0:01:36]} 17. Nc3 {[%emt 0:02:35]} a6 {[%emt 0:03:08]} 18. Nd2 {[%emt 0:05:18]} Bxe2 {[%emt 0:02:23]} 19. Qxe2 {[%emt 0:00:26]} Nxd2 {[%emt 0:00:56]} 20. Qxd2 {[%emt 0:00:08]} Na5 {[%emt 0:00:47]} 21. Qd3 {[%emt 0:04:03]} Rg6 {[%emt 0:00:52]} 22. Kh2 {[%emt 0:01:15]} Nc4 {[%emt 0:00:43]} 23. Rc2 {[%emt 0:01:02]} f6 {[%emt 0:04:11]} 24. Rhc1 {[%emt 0:03:00]} Rc6 {[%emt 0:01:29]} 25. Ne2 {[%emt 0:02:27]} Qb6 {[%emt 0:02:58]} 26. Bg3 {[%emt 0:05:27]} Nxb2 {[%emt 0:02:52]} 27. Rxc6 {[%emt 0:00:31]} bxc6 {[%emt 0:00:14]} 28. Qc2 {[%emt 0:00:15]} Nc4 {[%emt 0:00:42]} 29. Nf4 {[%emt 0:04:35]} Rh6 {[%emt 0:00:14]} 30. Nxe6 {[%emt 0:01:17]} Bxa3 {[%emt 0:00:13]} 31. Rb1 {[%emt 0:00:52]} Bb4 {[%emt 0:00:19]} 32. Nc7+ {[%emt 0:02:16]} 1-0

[Event "Chinese Chess League Men 2019"]
[Site "Daqing"]
[Date "2019.06.21"]
[Round "3.10"]
[White "Xu, Minghui"]
[Black "Li, Yankai"]
[Result "1/2-1/2"]
[ECO "A18"]
[WhiteElo "2368"]
[BlackElo "2432"]
[Annotator "NA RC"]
[PlyCount "60"]
[EventDate "2019.06.19"]
[EventType "team-tourn"]
[EventCountry "CHN"]
[SourceTitle "playchess.com"]
[Source "ChessBase"]
[SourceQuality "1"]
[TimeControl "5400+30"]

1. c4 {[%emt 0:00:00]} Nf6 {[%emt 0:00:00]} 2. Nc3 {[%emt 0:00:21]} e6 {[%emt 0:00:32]} 3. e4 {[%emt 0:01:09]} d5 {[%emt 0:00:07]} 4. e5 {[%emt 0:00:07]} d4 {[%emt 0:00:04]} 5. exf6 {[%emt 0:00:15]} dxc3 {[%emt 0:00:06]} 6. bxc3 {[%emt 0:01:03]} Qxf6 {[%emt 0:00:04]} 7. d4 {[%emt 0:02:59]} e5 {[%emt 0:01:55]} 8. Nf3 {[%emt 0:00:43]} Nc6 {[%emt 0:00:05]} 9. Bg5 {[%emt 0:03:26]} Qg6 {[%emt 0:00:06]} 10. d5 {[%emt 0:01:07]} Nb8 {[%emt 0:03:11]} 11. h4 {[%emt 0:00:42]} h6 {[%emt 0:00:16]} 12. Qe2 {[%emt 0:06:13]} hxg5 {[%emt 0:07:04]} 13. Nxe5 {[%emt 0:00:21]} Qh5 {[%emt 0:00:06]} 14. g4 {[%emt 0:03:16]} Bxg4 {[%emt 0:02:00]} 15. Nxg4+ {[%emt 0:00:13]} Kd8 {[%emt 0:00:09]} 16. Ne5 {[%emt 0:03:19]} Qxe2+ {[%emt 0:00:15]} 17. Kxe2 {[%emt 0:02:17]} Rxh4 {[%emt 0:00:30]} 18. Rxh4 {[%emt 0:03:23]} gxh4 {[%emt 0:01:56]} 19. Bh3 {[%emt 0:01:06]} Bd6 {[%emt 0:09:46]} 20. Nxf7+ {[%emt 0:00:17]} Ke7 {[%emt 0:00:09]} 21. Nxd6 {[%emt 0:00:10]} cxd6 {[%emt 0:00:04]} 22. Rg1 {[%emt 0:00:04]} Kf6 {[%emt 0:00:03]} 23. Rg4 {[%emt 0:01:07]} Nd7 {[%emt 0:00:51]} 24. Rxh4 {[%emt 0:01:34]} Re8+ {[%emt 0:00:23]} 25. Kd1 {[%emt 0:00:32]} Nc5 {[%emt 0:00:06]} 26. Rf4+ {[%emt 0:00:49]} Ke7 {[%emt 0:00:11]} 27. Rg4 {[%emt 0:04:16]} Kf6 {[%emt 0:00:14]} 28. Rf4+ {[%emt 0:00:07]} Ke7 {[%emt 0:00:04]} 29. Rg4 {[%emt 0:00:55]} Kf6 {[%emt 0:00:05]} 30. Rf4+ {[%emt 0:00:08]} Ke5 {[%emt 0:00:42]} 1/2-1/2

[Event "Chinese Chess League Men 2019"]
[Site "Daqing"]
[Date "2019.06.21"]
[Round "3.11"]
[White "Chu, Wei Chao"]
[Black "Lan, Zilun"]
[Result "1-0"]
[ECO "E04"]
[WhiteElo "2374"]
[BlackElo "2352"]
[Annotator "NA RC"]
[PlyCount "40"]
[EventDate "2019.06.19"]
[EventType "team-tourn"]
[EventCountry "CHN"]
[SourceTitle "playchess.com"]
[Source "ChessBase"]
[SourceQuality "1"]
[TimeControl "5400+30"]

1. d4 {[%emt 0:00:00]} Nf6 {[%emt 0:00:00]} 2. g3 {[%emt 0:00:00]} e6 {[%emt 0:00:00]} 3. Bg2 {[%emt 0:00:00]} d5 {[%emt 0:00:07]} 4. Nf3 {[%emt 0:00:00]} c5 {[%emt 0:00:25]} 5. O-O {[%emt 0:00:06]} Nc6 {[%emt 0:02:31]} 6. c4 {[%emt 0:00:13]} dxc4 {[%emt 0:06:44]} 7. Ne5 {[%emt 0:00:07]} Bd7 {[%emt 0:06:13]} 8. Na3 {[%emt 0:00:11]} cxd4 {[%emt 0:11:03]} 9. Naxc4 {[%emt 0:00:10]} Nxe5 {[%emt 0:05:27]} 10. Nxe5 {[%emt 0:00:09]} Qb6 {[%emt 0:00:10]} 11. Bf4 {[%emt 0:23:12]} Be7 {[%emt 0:08:03]} 12. Nxd7 {[%emt 0:12:10]} Nxd7 {[%emt 0:00:21]} 13. Qa4 {[%emt 0:00:05]} Bd6 {[%emt 0:06:48]} 14. Bxb7 {[%emt 0:12:01]} Qxb7 {[%emt 0:22:44]} 15. Bxd6 {[%emt 0:00:09]} Qd5 {[%emt 0:00:14]} 16. Ba3 {[%emt 0:01:03]} f6 {[%emt 0:00:05]} 17. Qb4 {[%emt 0:05:36]} Kf7 {[%emt 0:00:19]} 18. e4 {[%emt 0:00:05]} dxe3 {[%emt 0:04:29]} 19. Rad1 {[%emt 0:00:26]} exf2+ {[%emt 0:00:45]} 20. Kxf2 {[%emt 0:00:03]} Qc6 {[%emt 0:00:54]} 1-0

[Event "Chinese Chess League Men 2019"]
[Site "Daqing"]
[Date "2019.06.22"]
[Round "4.3"]
[White "Xiu, Deshun"]
[Black "Liu, Guanchu"]
[Result "1/2-1/2"]
[ECO "E32"]
[WhiteElo "2538"]
[BlackElo "2462"]
[Annotator "ChessBase"]
[PlyCount "71"]
[EventDate "2019.06.19"]
[EventType "team-tourn"]
[EventCountry "CHN"]
[SourceTitle "playchess.com"]
[Source "ChessBase"]
[SourceQuality "1"]
[TimeControl "5400+30"]

1. d4 {[%emt 0:00:00]} e6 {[%emt 0:00:27]} 2. c4 {[%emt 0:00:00]} Nf6 {[%emt 0:00:30]} 3. Nc3 {[%emt 0:00:03]} Bb4 {[%emt 0:00:32]} 4. Qc2 {[%emt 0:00:11]} O-O {[%emt 0:01:21]} 5. e4 {[%emt 0:00:11]} d5 {[%emt 0:00:34]} 6. e5 {[%emt 0:00:09]} Ne4 {[%emt 0:00:22]} 7. Bd3 {[%emt 0:00:17]} c5 {[%emt 0:00:42]} 8. Nf3 {[%emt 0:00:11]} cxd4 {[%emt 0:03:06]} 9. Nxd4 {[%emt 0:02:12]} Nd7 {[%emt 0:00:44]} 10. Bf4 {[%emt 0:00:17]} Qh4 {[%emt 0:04:35]} 11. g3 {[%emt 0:00:46]} Qh5 {[%emt 0:00:31]} 12. cxd5 {[%emt 0:05:36]} exd5 {[%emt 0:00:21]} 13. f3 {[%emt 0:00:24]} Bxc3+ {[%emt 0:02:43]} 14. bxc3 {[%emt 0:00:33]} Nec5 {[%emt 0:00:48]} 15. g4 {[%emt 0:29:02]} Nxd3+ {[%emt 0:03:20]} 16. Qxd3 {[%emt 0:01:28]} Nc5 {[%emt 0:00:23]} 17. Qe3 {[%emt 0:11:53]} Qg6 {[%emt 0:02:33]} 18. O-O {[%emt 0:00:09]} Bd7 {[%emt 0:03:08]} 19. Rad1 {[%emt 0:01:25]} Rac8 {[%emt 0:01:55]} 20. Bg3 {[%emt 0:07:27]} Na4 {[%emt 0:05:24]} 21. Rc1 {[%emt 0:00:08]} Rc4 {[%emt 0:02:44]} 22. h3 {[%emt 0:02:56]} Qb6 {[%emt 0:11:34]} 23. Bf2 {[%emt 0:05:20]} Rfc8 {[%emt 0:05:45]} 24. Ne2 {[%emt 0:00:06]} Qxe3 {[%emt 0:08:11]} 25. Bxe3 {[%emt 0:00:05]} Nxc3 {[%emt 0:00:45]} 26. Nxc3 {[%emt 0:00:07]} Rxc3 {[%emt 0:00:02]} 27. Rxc3 {[%emt 0:00:07]} Rxc3 {[%emt 0:00:02]} 28. Bxa7 {[%emt 0:00:06]} Ra3 {[%emt 0:00:25]} 29. Bd4 {[%emt 0:00:05]} Rxa2 {[%emt 0:03:31]} 30. Ra1 {[%emt 0:00:09]} Rxa1+ {[%emt 0:00:08]} 31. Bxa1 {[%emt 0:00:05]} h5 {[%emt 0:00:06]} 32. Kf2 {[%emt 0:01:08]} Kh7 {[%emt 0:01:57]} 33. Kg3 {[%emt 0:00:12]} Kg6 {[%emt 0:00:50]} 34. f4 {[%emt 0:00:17]} hxg4 {[%emt 0:00:51]} 35. hxg4 {[%emt 0:00:04]} f5 {[%emt 0:00:23]} 36. exf6 {[%emt 0:00:19]} 1/2-1/2

[Event "Chinese Chess League Men 2019"]
[Site "Daqing"]
[Date "2019.06.22"]
[Round "4.4"]
[White "Zhao, Yuanhe"]
[Black "Yuan, Qingyu"]
[Result "1/2-1/2"]
[ECO "E20"]
[WhiteElo "2444"]
[BlackElo "2355"]
[Annotator "NA"]
[PlyCount "75"]
[EventDate "2019.06.19"]
[EventType "team-tourn"]
[EventCountry "CHN"]
[SourceTitle "playchess.com"]
[Source "ChessBase"]
[SourceQuality "1"]
[TimeControl "5400+30"]

1. Nf3 {[%emt 0:00:00]} d5 {[%emt 0:00:00]} 2. d4 {[%emt 0:00:07]} Nf6 {[%emt 0:00:14]} 3. c4 {[%emt 0:00:05]} e6 {[%emt 0:00:03]} 4. Nc3 {[%emt 0:00:13]} Bb4 {[%emt 0:00:05]} 5. g3 {[%emt 0:00:18]} O-O {[%emt 0:00:13]} 6. Bg2 {[%emt 0:00:48]} dxc4 {[%emt 0:00:16]} 7. O-O {[%emt 0:00:40]} Nc6 {[%emt 0:01:01]} 8. Bg5 {[%emt 0:02:31]} h6 {[%emt 0:02:05]} 9. Bxf6 {[%emt 0:00:20]} Qxf6 {[%emt 0:00:08]} 10. e3 {[%emt 0:00:24]} Rb8 {[%emt 0:02:33]} 11. Nd2 {[%emt 0:02:55]} Na5 {[%emt 0:05:17]} 12. Qc2 {[%emt 0:03:44]} Bd7 {[%emt 0:15:14]} 13. a3 {[%emt 0:11:51]} Bxc3 {[%emt 0:04:39]} 14. Qxc3 {[%emt 0:00:07]} b6 {[%emt 0:01:27]} 15. Nxc4 {[%emt 0:20:05]} Bb5 {[%emt 0:00:26]} 16. Ne5 {[%emt 0:00:07]} Bxf1 {[%emt 0:18:40]} 17. Rxf1 {[%emt 0:00:16]} c5 {[%emt 0:02:15]} 18. Nd7 {[%emt 0:05:10]} Qe7 {[%emt 0:07:11]} 19. Nxf8 {[%emt 0:05:55]} Qxf8 {[%emt 0:01:50]} 20. d5 {[%emt 0:07:16]} exd5 {[%emt 0:06:48]} 21. Bxd5 {[%emt 0:00:31]} Nb7 {[%emt 0:05:32]} 22. Rd1 {[%emt 0:01:01]} Rd8 {[%emt 0:00:55]} 23. e4 {[%emt 0:07:22]} Rd7 {[%emt 0:06:45]} 24. Rd3 {[%emt 0:01:43]} Nd8 {[%emt 0:01:11]} 25. Qc4 {[%emt 0:03:39]} Kh8 {[%emt 0:03:06]} 26. Rf3 {[%emt 0:02:54]} Qe7 {[%emt 0:01:19]} 27. Kg2 {[%emt 0:00:26]} Rc7 {[%emt 0:02:03]} 28. h4 {[%emt 0:01:22]} Ne6 {[%emt 0:01:12]} 29. a4 {[%emt 0:01:14]} Qe8 {[%emt 0:00:49]} 30. Rd3 {[%emt 0:01:54]} Qe7 {[%emt 0:00:19]} 31. a5 {[%emt 0:04:40]} Rd7 {[%emt 0:02:13]} 32. axb6 {[%emt 0:01:26]} axb6 {[%emt 0:00:01]} 33. Rb3 {[%emt 0:00:25]} Qd6 {[%emt 0:03:27]} 34. Bxe6 {[%emt 0:05:02]} fxe6 {[%emt 0:00:19]} 35. Qb5 {[%emt 0:00:10]} Qd4 {[%emt 0:01:13]} 36. Rf3 {[%emt 0:01:42]} Kh7 {[%emt 0:00:45]} 37. Qc6 {[%emt 0:02:53]} Rd6 38. Qb5 {[%emt 0:00:01]} 1/2-1/2

[Event "Chinese Chess League Men 2019"]
[Site "Daqing"]
[Date "2019.06.22"]
[Round "4.6"]
[White "Li, Yankai"]
[Black "Wen, Yang"]
[Result "1-0"]
[ECO "E04"]
[WhiteElo "2432"]
[BlackElo "2588"]
[Annotator "ChessBase"]
[PlyCount "85"]
[EventDate "2019.06.19"]
[EventType "team-tourn"]
[EventCountry "CHN"]
[SourceTitle "playchess.com"]
[Source "ChessBase"]
[SourceQuality "1"]
[TimeControl "5400+30"]

1. d4 {[%emt 0:00:12]} Nf6 {[%emt 0:00:00]} 2. c4 {[%emt 0:00:12]} e6 {[%emt 0:00:00]} 3. g3 {[%emt 0:00:02]} d5 {[%emt 0:00:00]} 4. Bg2 {[%emt 0:00:03]} dxc4 {[%emt 0:00:00]} 5. Nf3 {[%emt 0:00:02]} Nc6 {[%emt 0:00:47]} 6. Qa4 {[%emt 0:00:06]} Bb4+ {[%emt 0:00:05]} 7. Bd2 {[%emt 0:00:03]} Nd5 {[%emt 0:00:20]} 8. Bxb4 {[%emt 0:00:07]} Ndxb4 {[%emt 0:06:28]} 9. O-O {[%emt 0:13:21]} Rb8 {[%emt 0:02:15]} 10. Na3 {[%emt 0:00:52]} O-O {[%emt 0:00:00]} 11. Qb5 {[%emt 0:00:12]} b6 {[%emt 0:00:00]} 12. Qxc4 {[%emt 0:00:06]} Ba6 {[%emt 0:00:00]} 13. Nb5 {[%emt 0:00:10]} Qe8 {[%emt 0:05:32]} 14. Rfc1 {[%emt 0:01:24]} Nd5 {[%emt 0:00:00]} 15. Qxc6 {[%emt 0:05:45]} Qxc6 {[%emt 0:00:00]} 16. Rxc6 {[%emt 0:00:04]} Bxb5 {[%emt 0:00:00]} 17. Rc2 {[%emt 0:00:15]} Rfc8 {[%emt 0:03:13]} 18. Rac1 {[%emt 0:04:06]} c5 {[%emt 0:06:37]} 19. dxc5 {[%emt 0:00:09]} Nb4 {[%emt 0:00:00]} 20. Rd2 {[%emt 0:05:44]} Nxa2 {[%emt 0:00:00]} 21. Ra1 {[%emt 0:00:14]} Nb4 {[%emt 0:06:28]} 22. cxb6 {[%emt 0:01:56]} axb6 {[%emt 0:02:21]} 23. h4 {[%emt 0:24:05]} Kf8 24. g4 {[%emt 0:35:10]} Nc6 {[%emt 0:03:19]} 25. e3 {[%emt 0:08:46]} Na5 {[%emt 0:03:55]} 26. Nd4 {[%emt 0:00:00]} Bd7 {[%emt 0:19:21]} 27. b4 {[%emt 0:00:19]} Nc4 {[%emt 0:00:00]} 28. Rdd1 {[%emt 0:27:34]} Rc7 {[%emt 0:05:14]} 29. Rdc1 {[%emt 0:00:52]} Rbc8 {[%emt 0:05:18]} 30. g5 {[%emt 0:01:19]} e5 {[%emt 0:19:17]} 31. Ne2 {[%emt 0:00:00]} Be6 {[%emt 0:00:03]} 32. Rc3 {[%emt 0:00:00]} Nb2 33. Rxc7 Rxc7 {[%emt 0:07:18]} 34. Ra8+ {[%emt 0:00:00]} Ke7 {[%emt 0:05:28]} 35. Rb8 {[%emt 0:00:00]} Na4 36. Ng3 {[%emt 0:07:16]} Rc4 {[%emt 0:00:38]} 37. b5 {[%emt 0:01:30]} Rxh4 {[%emt 0:01:40]} 38. Bc6 {[%emt 0:02:08]} Rg4 {[%emt 0:00:12]} 39. Kh2 {[%emt 0:01:01]} Rh4+ {[%emt 0:00:57]} 40. Kg2 {[%emt 0:00:45]} Rg4 {[%emt 0:01:09]} 41. Kf3 {[%emt 0:00:43]} Rb4 {[%emt 0:01:04]} 42. Ne4 {[%emt 0:00:34]} f5 {[%emt 0:00:16]} 43. Re8+ {[%emt 0:00:41]} 1-0

[Event "Chinese Chess League Men 2019"]
[Site "Daqing"]
[Date "2019.06.22"]
[Round "4.7"]
[White "Liu, Qingnan"]
[Black "Chu, Wei Chao"]
[Result "0-1"]
[ECO "B20"]
[WhiteElo "2551"]
[BlackElo "2374"]
[Annotator "ChessBase"]
[PlyCount "108"]
[EventDate "2019.06.19"]
[EventType "team-tourn"]
[EventCountry "CHN"]
[SourceTitle "playchess.com"]
[Source "ChessBase"]
[SourceQuality "1"]
[TimeControl "5400+30"]

1. e4 {[%emt 0:00:00]} c5 {[%emt 0:00:00]} 2. Ne2 {[%emt 0:00:30]} d6 {[%emt 0:00:07]} 3. g3 {[%emt 0:00:54]} Nc6 {[%emt 0:00:10]} 4. Bg2 {[%emt 0:00:26]} g6 {[%emt 0:00:07]} 5. c3 {[%emt 0:00:58]} Bg7 {[%emt 0:00:36]} 6. d4 {[%emt 0:00:52]} Nf6 {[%emt 0:09:42]} 7. Na3 {[%emt 0:07:29]} cxd4 {[%emt 0:03:06]} 8. cxd4 {[%emt 0:00:10]} Bg4 {[%emt 0:00:08]} 9. f3 {[%emt 0:02:11]} Bd7 {[%emt 0:00:32]} 10. Be3 {[%emt 0:01:51]} O-O {[%emt 0:00:36]} 11. Qd2 {[%emt 0:00:47]} Qa5 {[%emt 0:05:18]} 12. Qxa5 {[%emt 0:18:34]} Nxa5 {[%emt 0:00:19]} 13. Kd2 {[%emt 0:00:21]} Rfc8 {[%emt 0:01:07]} 14. Rhc1 {[%emt 0:00:24]} d5 {[%emt 0:01:32]} 15. Bg5 {[%emt 0:09:41]} e6 {[%emt 0:06:14]} 16. Rxc8+ {[%emt 0:10:43]} Rxc8 {[%emt 0:01:32]} 17. e5 {[%emt 0:00:08]} Ne8 {[%emt 0:00:07]} 18. Rc1 {[%emt 0:00:04]} Rxc1 {[%emt 0:05:40]} 19. Kxc1 {[%emt 0:00:59]} Bf8 {[%emt 0:04:10]} 20. Nc2 {[%emt 0:00:26]} Nc6 {[%emt 0:04:11]} 21. Nc3 {[%emt 0:01:22]} Nc7 {[%emt 0:05:45]} 22. Bf1 {[%emt 0:00:17]} h6 {[%emt 0:09:20]} 23. Be3 {[%emt 0:00:11]} h5 {[%emt 0:00:43]} 24. Ne1 {[%emt 0:07:39]} Be7 {[%emt 0:01:20]} 25. Bd3 {[%emt 0:00:48]} Kg7 {[%emt 0:03:23]} 26. f4 {[%emt 0:00:37]} Nb4 {[%emt 0:02:42]} 27. Be2 {[%emt 0:00:15]} Kf8 {[%emt 0:03:42]} 28. b3 {[%emt 0:00:41]} Nc6 {[%emt 0:00:28]} 29. Kb2 {[%emt 0:00:22]} b6 {[%emt 0:05:10]} 30. h3 {[%emt 0:00:36]} Bc8 {[%emt 0:01:27]} 31. a3 {[%emt 0:00:45]} Ba6 {[%emt 0:00:43]} 32. Bxa6 {[%emt 0:02:42]} Nxa6 {[%emt 0:00:23]} 33. Nb5 {[%emt 0:02:03]} Ke8 {[%emt 0:01:31]} 34. Nd3 {[%emt 0:03:23]} Kd7 {[%emt 0:01:34]} 35. f5 {[%emt 0:01:44]} gxf5 {[%emt 0:04:31]} 36. h4 {[%emt 0:11:39]} f6 {[%emt 0:00:07]} 37. Nf4 {[%emt 0:02:13]} fxe5 {[%emt 0:01:46]} 38. dxe5 {[%emt 0:00:05]} Nc5 {[%emt 0:01:44]} 39. Nxh5 {[%emt 0:10:30]} Nd3+ {[%emt 0:00:10]} 40. Kc2 {[%emt 0:00:34]} Ndxe5 {[%emt 0:00:06]} 41. Nf4 {[%emt 0:00:47]} a6 {[%emt 0:01:28]} 42. Nd4 {[%emt 0:00:23]} Ng4 {[%emt 0:00:07]} 43. Nxc6 {[%emt 0:00:36]} Nxe3+ {[%emt 0:00:29]} 44. Kd3 {[%emt 0:00:06]} Kxc6 {[%emt 0:01:07]} 45. Kxe3 {[%emt 0:00:09]} e5 {[%emt 0:00:55]} 46. Ne6 {[%emt 0:01:38]} d4+ {[%emt 0:03:18]} 47. Kd3 {[%emt 0:00:36]} Kd6 {[%emt 0:00:36]} 48. Ng7 {[%emt 0:00:26]} e4+ {[%emt 0:00:08]} 49. Ke2 {[%emt 0:00:14]} Ke5 {[%emt 0:00:12]} 50. b4 {[%emt 0:00:25]} Bf8 {[%emt 0:01:53]} 51. Ne8 {[%emt 0:00:18]} d3+ {[%emt 0:00:08]} 52. Kd2 {[%emt 0:00:07]} Kd4 {[%emt 0:01:13]} 53. Nc7 {[%emt 0:00:02]} e3+ {[%emt 0:00:38]} 54. Ke1 {[%emt 0:00:05]} Bd6 {[%emt 0:00:26]} 0-1